fUST/lending_fUST_20240603
["ID","MTS","AMOUNT","RATE_DAILY","PERIOD"]
[328454839,1717411852279,-4238.16705137,0.00022191,2]
[328454840,1717411852289,-500.0,0.00022191,2]
[328454841,1717411852299,-500.0,0.00022191,2]
[328454842,1717411852308,-757.4,0.00022191,2]
[328454843,1717411852319,-2250.22,0.00022191,2]
[328454844,1717411852329,-395.27240355,0.00022191,2]
[328454845,1717411852339,-927.62,0.00022191,2]
[328454846,1717411852349,-669.48,0.00022191,2]
[328454847,1717411852359,-500.0,0.00022191,2]
[328454848,1717411852369,-605.13,0.00022191,2]
[328454849,1717411852378,-500.0,0.00022191,2]
[328454850,1717411852387,-500.0,0.00022191,2]
[328454851,1717411852396,-500.0,0.00022367,2]
[328454852,1717411852405,-346.19,0.00022367,2]
[328454853,1717411852414,-1057.05,0.00022367,2]
[328454854,1717411852423,-1300.95,0.00022367,2]
[328454855,1717411852434,-501.5,0.00022367,2]
[328454856,1717411852443,-500.0,0.00022367,2]
[328454857,1717411852453,-500.0,0.00022367,2]
[328454858,1717411852462,-514.29,0.00022367,2]
[328454859,1717411852471,-1456.38,0.00022367,2]
[328454860,1717411852480,-500.0,0.00022367,2]
[328454861,1717411852489,-486.98793896,0.00022367,2]
[328454862,1717411852499,-500.0,0.00022367,2]
[328454863,1717411852509,-1362.24,0.00022367,2]
[328454864,1717411852519,-500.0,0.00022367,2]
[328454865,1717411852528,-506.18,0.00022367,2]
[328454866,1717411852538,-500.0,0.00022367,2]
[328454867,1717411852548,-500.0,0.00022367,2]
[328454868,1717411852558,-889.13,0.00022371,2]
[328454869,1717411852568,-500.0,0.00022371,2]
[328454870,1717411852578,-500.0,0.00022371,2]
[328454871,1717411852587,-663.62,0.00022371,2]
[328454872,1717411852597,-500.0,0.00022371,2]
[328454873,1717411852606,-505.95,0.00022371,2]
[328454874,1717411852615,-500.0,0.00022371,2]
[328454875,1717411852625,-551.94,0.00022371,2]
[328454876,1717411852634,-500.0,0.00022371,2]
[328454877,1717411852644,-500.0,0.00022371,2]
[328454878,1717411852653,-500.0,0.00022371,2]
[328454879,1717411852663,-500.0,0.00022371,2]
[328454880,1717411852672,-719.18,0.00022371,2]
[328454881,1717411852683,-625.25012117,0.00022371,2]
[328454882,1717411852693,-1091.88,0.00022371,2]
[328454883,1717411852702,-3293.93,0.00022371,2]
[328454884,1717411852712,-500.0,0.00022371,2]
[328454885,1717411852721,-330.92770761,0.00022371,2]
[328454886,1717411852731,-500.0,0.00022371,2]
[328454887,1717411852740,-500.0,0.00022371,2]
[328454888,1717411852750,-2227.33,0.00022371,2]
[328454889,1717411852760,-500.0,0.00022371,2]
[328454890,1717411852770,-765.8,0.00022371,2]
[328454891,1717411852780,-500.0,0.00022371,2]
[328454892,1717411852789,-537.67,0.00022371,2]
[328454893,1717411852799,-582.98,0.00022371,2]
[328454894,1717411852809,-500.0,0.00022465,2]
[328454895,1717411852819,-500.0,0.00022465,2]
[328454896,1717411852828,-757.4,0.00022465,2]
[328454897,1717411852838,-2250.22,0.00022465,2]
[328454898,1717411852847,-927.62,0.00022465,2]
[328454899,1717411852857,-669.48,0.00022465,2]
[328454900,1717411852866,-500.0,0.00022465,2]
[328454901,1717411852876,-605.13,0.00022465,2]
[328454902,1717411852886,-500.0,0.00022465,2]
[328454903,1717411852895,-500.0,0.00022465,2]
[328454904,1717411852904,-2111.50910737,0.00022538,2]
[328454905,1717411852914,-522.502,0.00022593,2]
[328454906,1717411852924,-218.98,0.00022593,2]
[328454907,1717411852935,-500.0,0.00022641,2]
[328454908,1717411852945,-1057.05,0.00022641,2]
[328454909,1717411852955,-1300.95,0.00022641,2]
[328454910,1717411852964,-501.5,0.00022641,2]
[328454911,1717411852974,-500.0,0.00022641,2]
[328454912,1717411852984,-500.0,0.00022641,2]
[328454913,1717411852993,-514.29,0.00022641,2]
[328454914,1717411853003,-1456.38,0.00022641,2]
[328454915,1717411853012,-500.0,0.00022641,2]
[328454916,1717411853021,-500.0,0.00022641,2]
[328454917,1717411853032,-1362.24,0.00022641,2]
[328454918,1717411853042,-500.0,0.00022641,2]
[328454919,1717411853054,-506.18,0.00022641,2]
[328454920,1717411853064,-331.20401103,0.00022641,2]
[328454921,1717411853073,-889.13,0.00022645,2]
[328454922,1717411853083,-500.0,0.00022645,2]
[328454923,1717411853092,-500.0,0.00022645,2]
[328454924,1717411853102,-663.62,0.00022645,2]
[328454925,1717411853112,-500.0,0.00022645,2]
[328454926,1717411853123,-505.95,0.00022645,2]
[328454927,1717411853133,-500.0,0.00022645,2]
[328454928,1717411853143,-551.94,0.00022645,2]
[328454929,1717411853153,-500.0,0.00022645,2]
[328454930,1717411853163,-500.0,0.00022645,2]
[328454931,1717411853172,-500.0,0.00022645,2]
[328454932,1717411853183,-500.0,0.00022645,2]
[328454933,1717411853192,-719.18,0.00022645,2]
[328454934,1717411853202,-1091.88,0.00022645,2]
[328454935,1717411853211,-3293.93,0.00022645,2]
[328454936,1717411853221,-500.0,0.00022645,2]
[328454937,1717411853231,-327.52178574,0.00022645,2]
[328454938,1717411853241,-500.0,0.00022645,2]
[328454939,1717411853250,-2227.33,0.00022645,2]
[328454940,1717411853260,-500.0,0.00022645,2]
[328454941,1717411853270,-765.8,0.00022645,2]
[328454942,1717411853279,-500.0,0.00022645,2]
[328454943,1717411853288,-537.67,0.00022645,2]
[328454944,1717411853298,-582.98,0.00022645,2]
[328454945,1717411853307,-179.8,0.00022679,5]
[328454946,1717411853317,-10221.94965738,0.00022737,2]
[328454947,1717411853326,-5611.44159243,0.00022738,2]
[328454948,1717411853336,-500.0,0.00022739,2]
[328454949,1717411853346,-500.0,0.00022739,2]
[328454950,1717411853356,-757.4,0.00022739,2]
[328454951,1717411853365,-2250.22,0.00022739,2]
[328454952,1717411853375,-927.62,0.00022739,2]
[328454953,1717411853384,-669.48,0.00022739,2]
[328454954,1717411853393,-500.0,0.00022739,2]
[328454955,1717411853403,-605.13,0.00022739,2]
[328454956,1717411853413,-291.62808642,0.00022739,2]
[328454957,1717411853422,-500.0,0.00022739,2]
[328454958,1717411853434,-292.111389,0.0002274,2]
[328454959,1717411853443,-584.176972,0.0002274,2]
[328454960,1717411853453,-292.065583,0.0002274,2]
[328454961,1717411853463,-584.131166,0.0002274,2]
[328454962,1717411853473,-584.222778,0.0002274,2]
[328454963,1717411853482,-292.065583,0.0002274,2]
[328454964,1717411853492,-584.131166,0.0002274,2]
[328454965,1717411853502,-296.096516,0.0002274,2]
[328454966,1717411853511,-292.065583,0.0002274,2]
[328454967,1717411853520,-292.065583,0.0002274,2]
[328454968,1717411853530,-584.176972,0.0002274,2]
[328454969,1717411853540,-292.065583,0.0002274,2]
[328454970,1717411853549,-292.065583,0.0002274,2]
[328454971,1717411853559,-292.065583,0.0002274,2]
[328454972,1717411853568,-500.0,0.00022915,2]
[328454973,1717411853578,-1057.05,0.00022915,2]
[328454974,1717411853588,-1300.95,0.00022915,2]
[328454975,1717411853598,-501.5,0.00022915,2]
[328454976,1717411853608,-500.0,0.00022915,2]
[328454977,1717411853617,-500.0,0.00022915,2]
[328454978,1717411853627,-514.29,0.00022915,2]
[328454979,1717411853636,-1456.38,0.00022915,2]
[328454980,1717411853646,-500.0,0.00022915,2]
[328454981,1717411853656,-500.0,0.00022915,2]
[328454982,1717411853666,-1362.24,0.00022915,2]
[328454983,1717411853677,-500.0,0.00022915,2]
[328454984,1717411853687,-506.18,0.00022915,2]
[328454985,1717411853696,-889.13,0.00022919,2]
[328454986,1717411853707,-500.0,0.00022919,2]
[328454987,1717411853716,-500.0,0.00022919,2]
[328454988,1717411853726,-663.62,0.00022919,2]
[328454989,1717411853735,-500.0,0.00022919,2]
[328454990,1717411853745,-505.95,0.00022919,2]
[328454991,1717411853754,-587.80245709,0.00022919,2]
[328454992,1717411853764,-551.94,0.00022919,2]
[328454993,1717411853773,-617.15987279,0.00022919,2]
[328454994,1717411853782,-500.0,0.00022919,2]
[328454995,1717411853792,-500.0,0.00022919,2]
[328454996,1717411853801,-500.0,0.00022919,2]
[328454997,1717411853811,-719.18,0.00022919,2]
[328454998,1717411853820,-1091.88,0.00022919,2]
[328454999,1717411853830,-3293.93,0.00022919,2]
[328455000,1717411853839,-500.0,0.00022919,2]
[328455001,1717411853849,-500.0,0.00022919,2]
[328455002,1717411853860,-2227.33,0.00022919,2]
[328455003,1717411853870,-500.0,0.00022919,2]
[328455004,1717411853879,-765.8,0.00022919,2]
[328455005,1717411853888,-500.0,0.00022919,2]
[328455006,1717411853897,-537.67,0.00022919,2]
[328455007,1717411853907,-351.67813618,0.00023011,2]
[328455008,1717411853916,-184.8118688,0.00023011,2]
[328455009,1717411853925,-500.0,0.00023013,2]
[328455010,1717411853934,-376.51748367,0.00023013,2]
[328455011,1717411853943,-757.4,0.00023013,2]
[328455012,1717411853953,-2250.22,0.00023013,2]
[328455013,1717411853963,-927.62,0.00023013,2]
[328455014,1717411853972,-669.48,0.00023013,2]
[328455015,1717411853982,-500.0,0.00023013,2]
[328455016,1717411853992,-605.13,0.00023013,2]
[328455017,1717411854001,-500.0,0.00023013,2]
[328455018,1717411854010,-500.0,0.00023189,2]
[328455019,1717411854020,-1057.05,0.00023189,2]
[328455020,1717411854029,-1300.95,0.00023189,2]
[328455021,1717411854040,-501.5,0.00023189,2]
[328455022,1717411854053,-500.0,0.00023189,2]
[328455023,1717411854062,-500.0,0.00023189,2]
[328455024,1717411854072,-514.29,0.00023189,2]
[328455025,1717411854082,-1456.38,0.00023189,2]
[328455026,1717411854092,-442.33590089,0.00023189,2]
[328455027,1717411854101,-433.62275054,0.00023189,2]
[328455028,1717411854112,-1362.24,0.00023189,2]
[328455029,1717411854123,-500.0,0.00023189,2]
[328455030,1717411854132,-506.18,0.00023189,2]
[328455031,1717411854141,-889.13,0.00023193,2]
[328455032,1717411854151,-380.28,0.00023193,2]
[328455033,1717411854159,-500.0,0.00023193,2]
[328455034,1717411854291,-663.62,0.00023193,2]
[328455035,1717411854305,-500.0,0.00023193,2]
[328455036,1717411854314,-505.95,0.00023193,2]
[328455037,1717411854324,-551.94,0.00023193,2]
[328455038,1717411854334,-500.0,0.00023193,2]
[328455039,1717411854344,-500.0,0.00023193,2]
[328455040,1717411854353,-500.0,0.00023193,2]
[328455041,1717411854363,-719.18,0.00023193,2]
[328455042,1717411854373,-1091.88,0.00023193,2]
[328455043,1717411854383,-3293.93,0.00023193,2]
[328455044,1717411854393,-500.0,0.00023193,2]
[328455045,1717411854403,-500.0,0.00023193,2]
[328455046,1717411854414,-2227.33,0.00023193,2]
[328455047,1717411854423,-419.8247757,0.00023193,2]
[328455048,1717411854434,-765.8,0.00023193,2]
[328455049,1717411854444,-500.0,0.00023193,2]
[328455050,1717411854452,-537.67,0.00023193,2]
[328455051,1717411854462,-179.8,0.00023279,5]
[328455052,1717411854472,-283.56560094,0.00023284,2]
[328455053,1717411854482,-1253.45510998,0.00023285,2]
[328455054,1717411854492,-198.18901316,0.00023285,2]
[328455055,1717411854501,-611.82502039,0.00023285,2]
[328455056,1717411854510,-396.49503711,0.00023285,2]
[328455057,1717411854520,-458.14168421,0.00023285,2]
[328455058,1717411854529,-154.95351395,0.00023285,2]
[328455059,1717411854538,-155.20812291,0.00023285,2]
[328455060,1717411854548,-300.77720501,0.00023285,2]
[328455061,1717411854558,-281.31656163,0.00023285,2]
[328455062,1717411854567,-309.88859792,0.00023285,2]
[328455063,1717411854577,-523.11398542,0.00023285,2]
[328455064,1717411854587,-155.69541623,0.00023285,2]
[328455065,1717411854596,-309.37619068,0.00023285,2]
[328455066,1717411854606,-1407.24401404,0.00023285,2]
[328455067,1717411854615,-155.44223965,0.00023285,2]
[328455068,1717411854624,-155.64029072,0.00023285,2]
[328455069,1717411854634,-527.75391758,0.00023285,4]
[328455070,1717411854644,-155.0,0.00023285,2]
[328455071,1717411854653,-207.04988001,0.00023285,2]
[328455072,1717411854663,-530.21806373,0.00023285,2]
[328455073,1717411854673,-179.52073575,0.00023285,2]
[328455074,1717411854684,-298.6741197,0.00023286,2]
[328455075,1717411854694,-15982.03419755,0.00023286,2]
[328455076,1717411854704,-500.0,0.00023287,2]
[328455077,1717411854714,-757.4,0.00023287,2]
[328455078,1717411854723,-2250.22,0.00023287,2]
[328455079,1717411854733,-927.62,0.00023287,2]
[328455080,1717411854742,-669.48,0.00023287,2]
[328455081,1717411854752,-500.0,0.00023287,2]
[328455082,1717411854762,-605.13,0.00023287,2]
[328455083,1717411854771,-262.32521492,0.00023287,2]
[328455084,1717411854780,-155.04648605,0.00023388,2]
[328455085,1717411854789,-162.84879519,0.00023388,2]
[328455086,1717411854799,-859.7179351,0.00023388,2]
[328455087,1717411854808,-713.3459449,0.00023388,2]
[328455088,1717411854817,-392.53174974,0.00023388,2]
[328455089,1717411854826,-316.52805142,0.00023388,2]
[328455090,1717411854836,-249.60984177,0.00023388,2]
[328455091,1717411854845,-550.9904196,0.00023388,2]
[328455092,1717411854854,-261.96069104,0.00023388,2]
[328455093,1717411854863,-760.94478308,0.00023388,2]
[328455094,1717411854873,-155.22187407,0.00023388,2]
[328455095,1717411854882,-184.42856408,0.00023388,2]
[328455096,1717411854892,-214.05723073,0.00023388,2]
[328455097,1717411854901,-626.22958168,0.00023388,2]
[328455098,1717411854910,-658.80929082,0.00023389,2]
[328455099,1717411854920,-3762.93030736,0.00023389,2]
[328455100,1717411854929,-18977.0,0.0002339,3]
[328455101,1717411854939,-500.0,0.00023463,2]
[328455102,1717411854948,-1057.05,0.00023463,2]
[328455103,1717411854958,-1300.95,0.00023463,2]
[328455104,1717411854967,-501.5,0.00023463,2]
[328455105,1717411854977,-500.0,0.00023463,2]
[328455106,1717411854986,-500.0,0.00023463,2]
[328455107,1717411854995,-514.29,0.00023463,2]
[328455108,1717411855004,-1456.38,0.00023463,2]
[328455109,1717411855014,-1362.24,0.00023463,2]
[328455110,1717411855023,-500.0,0.00023463,2]
[328455111,1717411855033,-506.18,0.00023463,2]
[328455112,1717411855047,-889.13,0.00023467,2]
[328455113,1717411855056,-408.25774002,0.00023467,2]
[328455114,1717411855066,-663.62,0.00023467,2]
[328455115,1717411855075,-500.0,0.00023467,2]
[328455116,1717411855085,-505.95,0.00023467,2]
[328455117,1717411855095,-551.94,0.00023467,2]
[328455118,1717411855104,-500.0,0.00023467,2]
[328455119,1717411855113,-500.0,0.00023467,2]
[328455120,1717411855124,-500.0,0.00023467,2]
[328455121,1717411855134,-719.18,0.00023467,2]
[328455122,1717411855143,-1091.88,0.00023467,2]
[328455123,1717411855152,-3293.93,0.00023467,2]
[328455124,1717411855161,-190.88151643,0.00023467,2]
[328455125,1717411855171,-500.0,0.00023467,2]
[328455126,1717411855180,-2227.33,0.00023467,2]
[328455127,1717411855189,-765.8,0.00023467,2]
[328455128,1717411855199,-500.0,0.00023467,2]
[328455129,1717411855208,-537.67,0.00023467,2]
[328455130,1717411855218,-358.38050345,0.00023557,2]
[328455131,1717411855227,-272.29500778,0.00023557,2]
[328455132,1717411855236,-760.968001,0.00023557,2]
[328455133,1717411855246,-231.25033487,0.00023557,2]
[328455134,1717411855256,-689.92961618,0.00023557,2]
[328455135,1717411855265,-1694.70359261,0.00023558,2]
[328455136,1717411855274,-159.7203433,0.00023559,2]
[328455137,1717411855283,-224.89839615,0.00023561,2]
[328455138,1717411855293,-500.0,0.00023561,2]
[328455139,1717411855303,-757.4,0.00023561,2]
[328455140,1717411855312,-2250.22,0.00023561,2]
[328455141,1717411855322,-927.62,0.00023561,2]
[328455142,1717411855331,-669.48,0.00023561,2]
[328455143,1717411855340,-500.0,0.00023561,2]
[328455144,1717411855349,-605.13,0.00023561,2]
[328455145,1717411855359,-292.111389,0.00023562,2]
[328455146,1717411855368,-36954.50841976,0.000237,3]
[328455147,1717411855378,-500.0,0.00023737,2]
[328455148,1717411855388,-1057.05,0.00023737,2]
[328455149,1717411855397,-1300.95,0.00023737,2]
[328455150,1717411855406,-501.5,0.00023737,2]
[328455151,1717411855416,-500.0,0.00023737,2]
[328455152,1717411855425,-500.0,0.00023737,2]
[328455153,1717411855436,-514.29,0.00023737,2]
[328455154,1717411855446,-1456.38,0.00023737,2]
[328455155,1717411855455,-1362.24,0.00023737,2]
[328455156,1717411855465,-500.0,0.00023737,2]
[328455157,1717411855474,-506.18,0.00023737,2]
[328455158,1717411855484,-889.13,0.00023741,2]
[328455159,1717411855493,-663.62,0.00023741,2]
[328455160,1717411855503,-500.0,0.00023741,2]
[328455161,1717411855512,-505.95,0.00023741,2]
[328455162,1717411855521,-551.94,0.00023741,2]
[328455163,1717411855530,-500.0,0.00023741,2]
[328455164,1717411855539,-500.0,0.00023741,2]
[328455165,1717411855548,-440.86148407,0.00023741,2]
[328455166,1717411855558,-719.18,0.00023741,2]
[328455167,1717411855568,-1091.88,0.00023741,2]
[328455168,1717411855577,-3293.93,0.00023741,2]
[328455169,1717411855587,-500.0,0.00023741,2]
[328455170,1717411855596,-2227.33,0.00023741,2]
[328455171,1717411855606,-765.8,0.00023741,2]
[328455172,1717411855615,-244.39617413,0.00023741,2]
[328455173,1717411855625,-537.67,0.00023741,2]
[328455174,1717411855634,-157.42350503,0.000238,2]
[328455175,1717411855643,-540.0,0.000238,2]
[328455176,1717411855652,-379.0,0.000238,2]
[328455177,1717411855662,-333.57547274,0.00023826,2]
[328455178,1717411855671,-1898.49806909,0.00023827,2]
[328455179,1717411855681,-1746.67756538,0.00023827,2]
[328455180,1717411855690,-156.02729105,0.00023828,4]
[328455181,1717411855703,-358965.75813567,0.00023829,2]
[328455182,1717411855713,-50226.55714636,0.0002383,2]
[328455183,1717411855723,-500.0,0.00023835,2]
[328455184,1717411855733,-757.4,0.00023835,2]
[328455185,1717411855742,-2250.22,0.00023835,2]
[328455186,1717411855752,-927.62,0.00023835,2]
[328455187,1717411855761,-669.48,0.00023835,2]
[328455188,1717411855771,-500.0,0.00023835,2]
[328455189,1717411855780,-605.13,0.00023835,2]
[328455190,1717411855790,-179.8,0.0002388,5]
[328455191,1717411855799,-151.0,0.0002388,5]
[328455192,1717411855808,-407.40062819,0.000239,2]
[328455193,1717411855818,-155.0,0.00023998,2]
[328455194,1717411855827,-623.92866437,0.00023998,2]
[328455195,1717411855837,-176078.39798364,0.00024,2]
[328455196,1717411855846,-500.0,0.00024011,2]
[328455197,1717411855856,-1057.05,0.00024011,2]
[328455198,1717411855865,-1300.95,0.00024011,2]
[328455199,1717411855874,-501.5,0.00024011,2]
[328455200,1717411855883,-500.0,0.00024011,2]
[328455201,1717411855892,-500.0,0.00024011,2]
[328455202,1717411855902,-514.29,0.00024011,2]
[328455203,1717411855910,-1456.38,0.00024011,2]
[328455204,1717411855920,-1362.24,0.00024011,2]
[328455205,1717411855931,-500.0,0.00024011,2]
[328455206,1717411855940,-506.18,0.00024011,2]
[328455207,1717411855949,-889.13,0.00024015,2]
[328455209,1717411855958,-663.62,0.00024015,2]
[328455210,1717411855967,-427.26616155,0.00024015,2]
[328455211,1717411855976,-505.95,0.00024015,2]
[328455212,1717411855985,-551.94,0.00024015,2]
[328455213,1717411855994,-500.0,0.00024015,2]
[328455214,1717411856003,-500.0,0.00024015,2]
[328455215,1717411856012,-719.18,0.00024015,2]
[328455216,1717411856021,-1091.88,0.00024015,2]
[328455217,1717411856030,-3293.93,0.00024015,2]
[328455218,1717411856040,-500.0,0.00024015,2]
[328455219,1717411856053,-2227.33,0.00024015,2]
[328455220,1717411856062,-765.8,0.00024015,2]
[328455221,1717411856072,-537.67,0.00024015,2]
[328455222,1717411856081,-500.0,0.00024109,2]
[328455223,1717411856092,-757.4,0.00024109,2]
[328455224,1717411856101,-2250.22,0.00024109,2]
[328455225,1717411856111,-927.62,0.00024109,2]
[328455226,1717411856120,-669.48,0.00024109,2]
[328455227,1717411856130,-500.0,0.00024109,2]
[328455228,1717411856139,-605.13,0.00024109,2]
[328455229,1717411856150,-500.0,0.00024285,2]
[328455230,1717411856159,-1057.05,0.00024285,2]
[328455231,1717411856168,-1300.95,0.00024285,2]
[328455232,1717411856177,-501.5,0.00024285,2]
[328455233,1717411856188,-500.0,0.00024285,2]
[328455234,1717411856197,-500.0,0.00024285,2]
[328455235,1717411856206,-514.29,0.00024285,2]
[328455236,1717411856215,-1456.38,0.00024285,2]
[328455237,1717411856225,-1362.24,0.00024285,2]
[328455238,1717411856234,-500.0,0.00024285,2]
[328455239,1717411856243,-506.18,0.00024285,2]
[328455240,1717411856252,-889.13,0.00024289,2]
[328455241,1717411856261,-663.62,0.00024289,2]
[328455242,1717411856270,-505.95,0.00024289,2]
[328455243,1717411856279,-551.94,0.00024289,2]
[328455244,1717411856288,-500.0,0.00024289,2]
[328455245,1717411856297,-374.28344358,0.00024289,2]
[328455246,1717411856306,-719.18,0.00024289,2]
[328455247,1717411856315,-1091.88,0.00024289,2]
[328455248,1717411856326,-3293.93,0.00024289,2]
[328455249,1717411856335,-500.0,0.00024289,2]
[328455250,1717411856346,-2227.33,0.00024289,2]
[328455251,1717411856356,-765.8,0.00024289,2]
[328455252,1717411856365,-537.67,0.00024289,2]
[328455253,1717411856375,-400.36461119,0.00024383,2]
[328455254,1717411856384,-757.4,0.00024383,2]
[328455255,1717411856393,-2250.22,0.00024383,2]
[328455256,1717411856403,-927.62,0.00024383,2]
[328455257,1717411856412,-669.48,0.00024383,2]
[328455258,1717411856421,-500.0,0.00024383,2]
[328455259,1717411856431,-605.13,0.00024383,2]
[328455260,1717411856440,-762.1714115,0.000244,2]
[328455261,1717411856453,-179.8,0.0002448,7]
[328455262,1717411856462,-151.0,0.0002448,7]
[328455263,1717411856471,-500.0,0.00024559,2]
[328455264,1717411856481,-1057.05,0.00024559,2]
[328455265,1717411856490,-1300.95,0.00024559,2]
[328455266,1717411856499,-501.5,0.00024559,2]
[328455267,1717411856509,-500.0,0.00024559,2]
[328455268,1717411856518,-500.0,0.00024559,2]
[328455269,1717411856527,-514.29,0.00024559,2]
[328455270,1717411856536,-1456.38,0.00024559,2]
[328455271,1717411856546,-1362.24,0.00024559,2]
[328455272,1717411856555,-451.15129257,0.00024559,2]
[328455273,1717411856565,-506.18,0.00024559,2]
[328455274,1717411856575,-889.13,0.00024563,2]
[328455275,1717411856584,-663.62,0.00024563,2]
[328455276,1717411856594,-505.95,0.00024563,2]
[328455277,1717411856603,-551.94,0.00024563,2]
[328455278,1717411856613,-500.0,0.00024563,2]
[328455279,1717411856622,-719.18,0.00024563,2]
[328455280,1717411856661,-1091.88,0.00024563,2]
[328455281,1717411856670,-3293.93,0.00024563,2]
[328455282,1717411856682,-500.0,0.00024563,2]
[328455283,1717411856691,-2227.33,0.00024563,2]
[328455284,1717411856703,-765.8,0.00024563,2]
[328455285,1717411856712,-537.67,0.00024563,2]
[328455286,1717411856721,-757.4,0.00024657,2]
[328455287,1717411856730,-2250.22,0.00024657,2]
[328455288,1717411856739,-927.62,0.00024657,2]
[328455289,1717411856748,-669.48,0.00024657,2]
[328455290,1717411856758,-500.0,0.00024657,2]
[328455291,1717411856767,-605.13,0.00024657,2]
[328455292,1717411856776,-435.80920819,0.00024658,2]
[328455293,1717411856785,-266.160608,0.00024658,2]
[328455294,1717411856795,-266.160608,0.00024658,2]
[328455295,1717411856804,-266.160608,0.00024658,2]
[328455296,1717411856813,-266.160608,0.00024658,2]
[328455297,1717411856823,-266.160608,0.00024658,2]
[328455298,1717411856832,-266.160608,0.00024658,2]
[328455299,1717411856841,-266.160608,0.00024658,2]
[328455300,1717411856850,-266.160608,0.00024658,2]
[328455301,1717411856859,-266.160608,0.00024658,2]
[328455302,1717411856868,-266.160608,0.00024658,2]
[328455303,1717411856878,-266.160608,0.00024658,2]
[328455304,1717411856887,-266.160608,0.00024658,2]
[328455305,1717411856897,-266.160608,0.00024658,2]
[328455306,1717411856906,-266.160608,0.00024658,2]
[328455307,1717411856915,-266.160608,0.00024658,2]
[328455308,1717411856924,-266.160608,0.00024658,2]
[328455309,1717411856936,-266.160608,0.00024658,2]
[328455310,1717411856945,-266.160608,0.00024658,2]
[328455311,1717411856954,-266.160608,0.00024658,2]
[328455312,1717411856963,-12272.82460403,0.000248,2]
[328455313,1717411856972,-500.0,0.00024833,2]
[328455314,1717411856981,-1057.05,0.00024833,2]
[328455315,1717411856991,-1300.95,0.00024833,2]
[328455316,1717411857000,-501.5,0.00024833,2]
[328455317,1717411857010,-500.0,0.00024833,2]
[328455318,1717411857019,-540.11581429,0.00024833,2]
[328455319,1717411857029,-514.29,0.00024833,2]
[328455320,1717411857042,-1456.38,0.00024833,2]
[328455321,1717411857051,-1362.24,0.00024833,2]
[328455322,1717411857061,-506.18,0.00024833,2]
[328455323,1717411857070,-889.13,0.00024837,2]
[328455324,1717411857081,-663.62,0.00024837,2]
[328455325,1717411857090,-505.95,0.00024837,2]
[328455326,1717411857099,-551.94,0.00024837,2]
[328455327,1717411857108,-500.0,0.00024837,2]
[328455328,1717411857118,-719.18,0.00024837,2]
[328455329,1717411857130,-1091.88,0.00024837,2]
[328455330,1717411857139,-3293.93,0.00024837,2]
[328455331,1717411857148,-500.0,0.00024837,2]
[328455332,1717411857157,-2227.33,0.00024837,2]
[328455333,1717411857167,-765.8,0.00024837,2]
[328455334,1717411857176,-537.67,0.00024837,2]
[328455335,1717411857187,-13358.77704551,0.0002484,2]
[328455336,1717411857196,-157.185845,0.00024904,2]
[328455337,1717411857206,-153.0,0.00024904,2]
[328455338,1717411857215,-153.0,0.00024904,2]
[328455339,1717411857228,-757.4,0.00024931,2]